bitfinex/quotes_ETHUSD_20240610
["timestamp","ask_amount","ask_price","bid_price","bid_amount"]
[1717978142902,0.661,3703.5,3703.1,0.46481834]
[1717978143134,1.35002,3703.7,3703.3,2.3054]
[1717978143334,0.661,3703.6,3703.3,2.3054]
[1717978144033,0.661,3703.6,3703.4,35.0]
[1717978154854,1.35007,3703.5,3703.4,35.0]
[1717978157965,1.35007,3703.5,3703.4,35.13555704]
[1717978166288,1.35007,3703.5,3703.4,0.13555704]
[1717978166488,1.35007,3703.5,3703.1,0.28192102]
[1717978166824,1.35007,3703.5,3703.2,35.0]
[1717978173097,1.35007,3703.5,3703.3,0.1356426]
[1717978173627,1.35007,3703.5,3703.4,0.13558407]
[1717978173806,1.35007,3703.5,3703.4,35.13558407]
[1717978176809,1.35007,3703.5,3703.4,0.13558407]
[1717978177007,1.35007,3703.5,3703.1,0.28192102]
[1717978177331,1.35007,3703.5,3703.2,35.13570114]
[1717978180428,0.661,3703.4,3703.2,35.13570114]
[1717978183817,1.35007,3703.5,3703.2,35.13570114]
[1717978186323,1.35007,3703.5,3703.3,2.3217]
[1717978186531,1.34993,3703.9,3703.4,0.13527853]
[1717978186730,0.661,3703.7,3703.4,0.13527853]
[1717978186933,0.661,3703.7,3703.5,35.0]
[1717978187145,0.661,3703.7,3703.6,0.13516149]
[1717978187652,0.661,3703.7,3703.3,2.3217]
[1717978187845,0.661,3703.7,3703.6,35.0]
[1717978188383,0.661,3703.7,3703.6,35.13516149]
[1717978198357,1.34993,3703.9,3703.6,37.78546694]
[1717978198564,2.01093,3703.9,3703.6,37.78546694]
[1717978198758,1.34993,3703.9,3703.6,37.78546694]
[1717978198939,2.01093,3703.9,3703.6,35.13516149]
[1717978201067,0.661,3703.7,3703.6,35.13516149]
[1717978206596,3.366985,3704.2,3703.6,35.13516149]
[1717978206754,0.661,3704.0,3703.6,35.13516149]
[1717978207795,1.080085,3704.2,3703.6,35.13516149]
[1717978207796,0.661,3703.8,3703.6,35.13516149]
[1717978215289,1.3499,3704.0,3703.6,35.13516149]
[1717978215498,0.661,3703.8,3703.6,35.13516149]
[1717978215793,1.3499,3704.0,3703.6,35.13516149]
[1717978215970,0.661,3703.9,3703.6,35.13516149]
[1717978218104,2.0109,3704.0,3703.6,37.45326149]
[1717978218294,1.3499,3704.0,3703.6,37.45326149]
[1717978218502,1.080085,3704.2,3703.6,40.10356694]
[1717978218817,0.661,3704.1,3703.6,40.10356694]
[1717978219166,3.0,3704.3,3703.6,40.10356694]
[1717978219501,0.661,3704.1,3703.6,40.10356694]
[1717978219682,1.080038,3704.3,3703.6,40.10356694]
[1717978219880,0.661,3704.2,3703.7,2.40088585]
[1717978220709,0.661,3704.2,3703.8,0.13487485]
[1717978221011,0.661,3704.0,3703.7,2.40088585]
[1717978221305,0.661,3704.0,3703.8,0.13487485]
[1717978221841,0.661,3704.0,3703.9,0.13525379]
[1717978221967,0.661,3704.0,3703.6,35.0]
[1717978222168,0.661,3703.7,3703.6,35.0]
[1717978223804,2.9513,3703.7,3703.6,35.0]
[1717978224109,3.38143,3703.7,3703.6,35.0]
[1717978224813,1.35004,3703.6,3702.5,1.91697984]
[1717978225126,0.661,3702.9,3702.5,1.91697984]
[1717978225421,0.661,3702.9,3702.8,35.0]
[1717978229590,2.959,3702.9,3702.8,35.0]
[1717978229907,3.389928,3702.9,3702.8,35.0]
[1717978230593,4.470397,3702.9,3702.8,35.0]
[1717978231372,1.35038,3702.7,3701.7,1.35071]
[1717978231575,0.661,3702.2,3701.7,1.35071]
[1717978232126,2.3068,3702.6,3702.0,35.0]
[1717978232276,0.661,3702.1,3702.0,35.0]
[1717978233011,0.661,3702.1,3702.0,35.15985532]
[1717978234913,2.3068,3702.6,3702.0,35.15985532]
[1717978235133,0.661,3702.1,3702.0,35.15985532]
[1717978242517,3.0855,3702.1,3702.0,35.15985532]
[1717978247394,0.661,3702.1,3702.0,35.15985532]
[1717978248836,1.3505,3702.4,3702.0,35.15985532]
[1717978248997,0.661,3702.1,3702.0,35.15985532]
[1717978249197,1.3505,3702.4,3702.0,35.15985532]
[1717978249404,0.661,3702.1,3702.0,35.15985532]
[1717978264766,1.3505,3702.4,3702.0,35.15985532]
[1717978264983,0.661,3702.1,3702.0,35.15985532]
[1717978266321,3.1549,3702.1,3702.0,35.15985532]
[1717978270830,3.1549,3702.1,3702.0,0.15985532]
[1717978271014,3.1549,3702.1,3701.5,1.35078]
[1717978271197,0.661,3702.0,3701.5,1.35078]
[1717978271397,0.661,3702.0,3701.6,0.16027901]
[1717978272022,0.661,3702.0,3701.9,35.0]
[1717978272187,0.661,3702.0,3701.9,35.16010134]
[1717978273735,3.6879,3702.4,3701.9,35.16010134]
[1717978273937,0.661,3702.0,3701.9,35.16010134]
[1717978283169,2.967,3702.0,3701.9,35.16010134]
[1717978288193,0.661,3702.0,3701.9,35.16010134]
[1717978310435,0.5798,3702.0,3701.9,35.16010134]
[1717978312301,0.661,3702.2,3701.9,35.16010134]
[1717978323161,0.661,3702.0,3701.9,35.16010134]
[1717978328876,3.35493,3702.0,3701.9,0.16010134]
[1717978329074,3.0539,3702.0,3701.9,0.16010134]
[1717978329278,3.0539,3702.0,3701.2,35.0]
[1717978329467,0.661,3701.3,3701.2,35.0]
[1717978332079,0.661,3701.5,3701.2,35.0]
[1717978332282,0.661,3701.3,3701.2,35.0]
[1717978336999,3.0195,3701.3,3701.2,35.0]
[1717978337332,1.35083,3701.5,3701.2,35.0]
[1717978337702,0.661,3701.3,3701.2,35.0]
[1717978337915,1.35083,3701.5,3701.2,35.0]
[1717978337916,1.35083,3701.5,3701.2,35.15578862]
[1717978338122,0.661,3701.3,3701.2,35.15578862]
[1717978340244,0.661,3701.3,3701.2,0.15578862]
[1717978340630,0.661,3701.3,3701.2,35.0]
[1717978340942,0.661,3701.3,3701.2,35.15578862]
[1717978341111,1.35083,3701.5,3701.2,35.15578862]
[1717978341311,0.661,3701.3,3701.2,35.15578862]
[1717978348927,0.661,3701.4,3701.2,35.15578862]
[1717978350836,3.0,3701.6,3701.2,35.15578862]
[1717978351152,0.661,3701.6,3701.2,35.15578862]
[1717978351360,0.661,3701.4,3701.2,35.15578862]
[1717978367675,2.3193,3701.6,3701.2,35.15578862]
[1717978367872,3.0,3701.8,3701.2,35.15578862]
[1717978368078,0.661,3701.4,3701.2,35.15578862]
[1717978368276,0.661,3701.4,3701.2,37.80609407]
[1717978368709,3.0,3701.8,3701.2,37.80609407]
[1717978368913,0.661,3701.4,3701.2,35.15578862]
[1717978370922,3.0,3701.8,3701.2,35.15578862]
[1717978371123,0.661,3701.4,3701.2,35.15578862]
[1717978372934,2.2789,3701.6,3701.2,37.56798862]
[1717978372935,0.661,3701.6,3701.2,37.56798862]
[1717978373303,0.661,3701.4,3701.2,35.15578862]
[1717978373503,0.661,3701.4,3701.2,37.80609407]
[1717978375654,2.2789,3701.8,3701.2,37.80609407]
[1717978375852,0.661,3701.4,3701.2,35.15578862]
[1717978386477,2.431427,3701.9,3701.2,35.15578862]
[1717978386676,0.661,3701.5,3701.2,35.15578862]
[1717978392649,0.661,3701.3,3701.2,35.15578862]
[1717978396261,0.661,3701.3,3701.2,0.15578862]
[1717978396702,0.661,3701.3,3701.2,35.0]
[1717978396896,0.661,3701.3,3701.2,35.15617233]
[1717978397700,1.35077,3701.6,3701.2,35.15617233]
[1717978397903,0.661,3701.4,3701.2,35.15617233]
[1717978409616,1.35087,3701.3,3701.2,35.15617233]
[1717978412321,2.01187,3701.3,3701.2,35.15617233]
[1717978419542,4.936517,3701.3,3701.2,0.15617233]
[1717978419742,4.49327,3701.3,3701.2,0.15617233]
[1717978419927,4.49327,3701.3,3700.4,35.0]
[1717978420123,0.661,3700.6,3700.4,35.0]
[1717978420338,0.661,3700.6,3700.5,0.15163779]
[1717978420825,0.661,3700.6,3700.3,2.4505]
[1717978421041,0.661,3700.6,3700.5,35.0]
[1717978421232,0.661,3700.6,3700.5,35.15163779]
[1717978426634,2.2844,3700.9,3700.5,35.15163779]
[1717978426868,0.661,3700.6,3700.5,35.15163779]
[1717978430072,0.661,3700.6,3700.5,0.15163779]
[1717978430429,2.3479,3700.3,3699.7,0.1244941]
[1717978430576,0.661,3699.8,3699.7,0.1244941]
[1717978431113,0.661,3699.8,3699.7,35.1244941]
[1717978432691,1.35129,3700.2,3699.7,35.1244941]
[1717978432898,1.35129,3700.2,3699.8,2.4372]
[1717978433234,0.661,3700.0,3699.8,2.4372]
[1717978434735,0.661,3700.0,3699.9,35.0]
[1717978442809,0.661,3700.0,3699.9,35.15247252]
[1717978443428,3.378561,3700.5,3699.9,35.15247252]
[1717978443642,0.661,3700.3,3699.9,37.80277797]
[1717978444138,0.661,3700.1,3699.9,37.80277797]
[1717978447748,0.561,3700.1,3699.9,37.80277797]
[1717978450042,0.661,3700.3,3699.9,37.80277797]
[1717978451751,1.35115,3700.6,3699.9,37.80277797]
[1717978452046,0.661,3700.3,3699.9,37.80277797]
[1717978452412,0.661,3700.5,3700.0,2.65030545]
[1717978452611,0.661,3700.5,3700.1,0.15235395]
[1717978453034,0.661,3700.5,3700.2,35.0]
[1717978453415,0.661,3700.5,3700.3,0.15223539]
[1717978453612,0.661,3700.5,3700.2,35.0]
[1717978454049,2.4774,3700.6,3700.3,0.15223539]
[1717978454246,2.4774,3700.6,3700.2,35.0]
[1717978454247,0.661,3700.4,3700.2,35.0]
[1717978454549,0.661,3700.4,3700.3,0.15223539]
[1717978454921,0.661,3700.4,3700.2,35.0]
[1717978455139,0.661,3700.4,3700.3,0.15223539]
[1717978455646,0.661,3700.4,3700.2,35.0]
[1717978456055,0.661,3700.4,3700.3,0.15223539]
[1717978456353,0.661,3700.5,3700.2,35.0]
[1717978456552,0.661,3700.5,3700.3,0.15223539]
[1717978456961,0.661,3700.5,3700.2,35.0]
[1717978457168,0.661,3700.5,3700.4,0.15220289]
[1717978457665,0.661,3700.5,3700.2,35.0]
[1717978457965,0.661,3700.5,3700.3,0.15226216]
[1717978458468,0.661,3700.5,3700.2,35.0]
[1717978458670,0.661,3700.5,3700.3,0.15226216]
[1717978458844,0.661,3700.5,3700.2,35.0]
[1717978459046,0.661,3700.5,3700.3,0.15226216]
[1717978459364,4.081065,3700.8,3700.3,2.65030545]
[1717978459535,0.661,3700.5,3700.4,0.15220289]
[1717978459937,0.661,3700.5,3700.2,35.0]
[1717978460137,0.661,3700.5,3700.4,0.15224455]
[1717978460328,0.661,3700.5,3700.3,0.15230383]
[1717978460533,0.661,3700.5,3700.4,0.15224455]
[1717978460968,0.661,3700.5,3700.2,35.0]
[1717978461171,0.661,3700.5,3700.4,0.15224455]
[1717978461545,0.661,3700.5,3700.2,35.0]
[1717978461747,0.661,3700.5,3700.4,0.15224455]
[1717978461979,0.661,3700.5,3700.3,0.15230383]
[1717978462141,0.661,3700.5,3700.4,0.15224455]
[1717978462547,0.661,3700.5,3700.2,37.65030545]
[1717978462748,3.351544,3700.9,3700.4,0.15224455]
[1717978462749,0.661,3700.7,3700.4,0.15224455]
[1717978462954,0.661,3700.7,3700.3,2.58140383]
[1717978463267,0.661,3700.7,3700.4,2.80255]
[1717978463580,0.661,3700.7,3700.4,0.15224455]
[1717978464678,1.081044,3700.9,3700.4,0.15224455]
[1717978464846,0.661,3700.8,3700.4,0.15224455]
[1717978466178,0.661,3700.8,3700.0,2.4469]
[1717978466473,0.661,3700.6,3700.0,2.4469]
[1717978466781,0.661,3700.6,3700.1,35.59834938]
[1717978467658,4.739561,3701.1,3700.1,35.59834938]
[1717978467888,0.661,3700.7,3700.1,35.59834938]
[1717978475593,0.661,3700.5,3700.1,35.59834938]
[1717978475885,0.661,3700.3,3700.1,35.59834938]
[1717978476071,2.2971,3700.6,3700.1,35.59834938]
[1717978476072,0.661,3700.5,3700.1,35.15242238]
[1717978478695,0.661,3700.3,3700.1,0.15242238]
[1717978478863,0.661,3700.3,3699.9,1.35137]
[1717978479068,0.661,3700.3,3699.9,1.79498139]
[1717978479268,0.661,3700.3,3700.0,35.1524549]
[1717978481186,0.661,3700.5,3700.0,35.1524549]
[1717978489288,2.2971,3700.6,3700.0,35.1524549]
[1717978489483,2.2971,3700.6,3700.0,37.80276035]
[1717978502433,2.01218,3700.5,3700.0,37.80276035]
[1717978502609,3.0776,3700.3,3700.0,35.1524549]
[1717978503639,3.0776,3700.1,3700.0,0.1524549]
[1717978504001,1.35135,3700.0,3699.8,35.0]
[1717978504202,0.661,3699.9,3699.8,35.0]
[1717978504823,2.9641,3699.9,3699.8,35.0]
[1717978505140,2.3031,3699.9,3699.8,35.0]
[1717978505335,2.9641,3699.9,3699.8,35.0]
[1717978513955,0.661,3699.9,3699.8,35.0]
[1717978518026,0.661,3699.9,3699.8,35.15300022]
[1717978521235,2.9123,3699.9,3699.8,35.15300022]
[1717978538476,2.9123,3699.9,3699.8,0.15300022]
[1717978538686,3.338664,3699.9,3699.8,0.15300022]
[1717978538859,3.338664,3699.9,3699.7,0.1244941]
[1717978538860,1.35142,3699.8,3699.7,0.1244941]
[1717978539046,1.35142,3699.8,3699.7,35.1244941]
[1717978539547,1.35142,3699.8,3699.7,35.27681859]
[1717978539775,1.8204284,3699.8,3699.7,35.27681859]
[1717978540482,4.1059284,3699.8,3699.7,0.27681859]
[1717978540846,4.1059284,3699.8,3699.7,0.1244941]
[1717978541252,4.1059284,3699.8,3699.7,0.27681859]
[1717978541581,7.1059284,3699.8,3699.7,0.27681859]
[1717978544586,7.1059284,3699.8,3699.7,0.1244941]
[1717978544789,7.1059284,3699.8,3699.7,0.27202162]
[1717978545078,7.1059284,3699.8,3699.7,0.1244941]
[1717978546951,7.7669284,3699.8,3699.7,0.1244941]
[1717978547147,7.7669284,3699.8,3699.7,0.27202162]
[1717978547568,5.4814284,3699.8,3699.7,0.27202162]
[1717978547764,1.35142,3699.8,3699.7,0.27202162]
[1717978547968,2.01242,3699.8,3699.7,0.27202162]
[1717978548779,2.01242,3699.8,3699.7,35.27202162]
[1717978550686,1.35142,3699.8,3699.7,0.27202162]
[1717978550856,2.01242,3699.8,3699.7,0.27202162]
[1717978556519,1.35142,3699.8,3699.7,0.27202162]
[1717978557014,2.01242,3699.8,3699.7,0.27202162]
[1717978567099,4.43832,3699.8,3699.7,0.27202162]
[1717978567287,5.182152,3699.8,3699.7,0.27202162]
[1717978567597,5.182152,3699.8,3699.7,0.1244941]
[1717978571410,8.182152,3699.8,3699.7,0.1244941]
[1717978571577,8.732152,3699.8,3699.7,0.1244941]
[1717978572707,8.732152,3699.8,3699.3,0.0973]
[1717978573048,8.732152,3699.8,3696.8,0.56689781]
[1717978573049,1.35241,3697.1,3696.8,0.56689781]
[1717978573310,1.35241,3697.1,3696.2,1.41714317]
[1717978573311,1.35221,3697.7,3696.7,0.661]
[1717978573517,0.135221,3697.6,3696.9,0.12698647]
[1717978573675,0.84418956,3697.5,3696.8,0.12298262]
[1717978573874,1.35231,3697.4,3696.1,2.4616]
[1717978574068,1.35231,3697.4,3696.2,35.0]
[1717978574291,1.35231,3697.4,3696.2,35.1135906]
[1717978574712,0.661,3697.1,3696.2,35.7745906]
[1717978574905,0.661,3697.1,3696.3,2.65030545]
[1717978575319,0.661,3697.1,3696.4,0.1134718]
[1717978575474,0.661,3697.1,3696.6,35.0]
[1717978575881,0.661,3697.1,3696.7,0.11329361]
[1717978576230,0.661,3697.1,3696.6,35.0]
[1717978576389,0.661,3697.1,3696.8,0.11323422]
[1717978576574,0.661,3697.1,3696.8,2.65030545]
[1717978576774,0.661,3697.1,3696.9,0.11317483]
[1717978577504,1.35231,3697.4,3696.9,0.11317483]
[1717978577838,0.661,3697.2,3696.9,0.11317483]
[1717978578188,1.35231,3697.4,3696.9,0.11317483]
[1717978578436,2.01331,3697.4,3697.0,0.27634803]
[1717978578589,2.01331,3697.4,3697.0,0.38946348]
[1717978579636,2.01331,3697.4,3697.1,35.0]
[1717978579637,1.35231,3697.4,3697.1,35.0]
[1717978579786,1.35231,3697.4,3697.1,35.11305607]
[1717978580746,1.35213,3697.9,3697.1,0.11305607]
[1717978580888,1.35213,3697.9,3697.1,2.38995607]
[1717978581088,2.01313,3697.9,3697.2,0.30509561]
[1717978581327,2.01313,3697.9,3697.6,35.0]
[1717978581705,2.01313,3697.9,3697.7,0.11269986]
[1717978582190,2.01313,3697.9,3697.8,0.1126405]
[1717978582390,2.01313,3697.9,3697.6,35.0]
[1717978582693,0.661,3697.7,3697.6,35.0]
[1717978583893,1.742941,3697.7,3697.6,35.0]
[1717978585540,1.35228,3697.5,3696.6,0.661]
[1717978585839,0.661,3697.4,3696.7,0.436704]
[1717978586732,0.661,3697.4,3696.8,35.0]
[1717978587760,1.35228,3697.5,3696.8,35.0]
[1717978592748,1.35228,3697.5,3696.9,0.1133465]
[1717978593286,1.35235,3697.3,3696.7,0.436704]
[1717978593482,1.35235,3697.3,3696.4,2.01364]
[1717978593483,1.35235,3697.3,3697.0,35.11328712]
[1717978593771,1.35235,3697.3,3697.0,35.0]
[1717978594074,1.35235,3697.3,3697.1,0.11322774]
[1717978597199,1.35235,3697.3,3696.5,0.661]
[1717978597410,1.35235,3697.3,3697.2,0.11350126]
[1717978597710,1.35235,3697.3,3696.6,35.201364]
[1717978597875,1.35235,3697.3,3697.2,0.11350126]
[1717978598074,1.35235,3697.3,3696.6,35.0]
[1717978598075,1.35255,3696.8,3696.6,35.0]
[1717978599681,4.61364564,3697.2,3696.6,35.0]
[1717978599985,4.61364564,3697.2,3696.7,0.661]
[1717978599986,1.35238,3697.2,3696.7,0.661]
[1717978600312,1.35238,3697.2,3696.7,2.65030545]
[1717978601612,4.35238,3697.2,3696.7,2.65030545]
[1717978602204,1.35238,3697.2,3696.7,2.65030545]
[1717978602506,1.61364564,3697.1,3696.7,2.65030545]
[1717978603121,1.61364564,3697.1,3696.5,0.661]
[1717978603344,1.61364564,3697.1,3696.8,35.0]
[1717978603803,2.96602564,3697.2,3696.8,35.0]
[1717978604006,0.58433966,3697.1,3696.8,35.0]
[1717978604216,2.96602564,3697.2,3696.8,37.55899814]
[1717978604518,0.58433716,3697.1,3696.8,37.55899814]
[1717978605021,2.96602564,3697.2,3696.8,37.55899814]
[1717978605198,0.58434195,3697.1,3696.8,37.55899814]
[1717978605598,2.96602564,3697.2,3696.8,37.55899814]
[1717978605816,0.5843432,3697.1,3696.8,37.55899814]
[1717978606118,2.96599331,3697.2,3696.8,37.55899814]
[1717978606821,2.96596761,3697.2,3696.8,37.55899814]
[1717978607925,2.96596761,3697.2,3696.9,0.11093504]
[1717978608091,2.96599996,3697.2,3696.9,0.11093504]
[1717978610844,1.35238,3697.2,3696.9,0.11093504]
[1717978611051,2.96599996,3697.2,3696.9,0.11093504]
[1717978611247,1.35238,3697.2,3696.9,0.11093504]
[1717978611453,2.96599996,3697.2,3696.5,0.661]
[1717978611610,2.96599996,3697.2,3697.0,35.11087566]
[1717978611813,2.96599996,3697.2,3697.0,35.0]
[1717978612036,2.96599996,3697.2,3697.1,0.11081628]
[1717978612236,3.55033525,3697.2,3697.1,0.11081628]
[1717978614216,1.93671529,3697.2,3697.1,0.11081628]
[1717978615255,1.93671529,3697.2,3696.5,0.661]
[1717978615469,1.93671529,3697.2,3696.6,0.11111321]
[1717978615622,1.35238,3697.2,3696.7,35.0]
[1717978615825,1.35238,3697.2,3696.8,0.11099443]
[1717978616031,1.93671897,3697.2,3696.7,35.0]
[1717978616232,1.93671897,3697.2,3696.8,0.11099443]
[1717978616427,1.93671897,3697.2,3696.7,35.0]
[1717978616634,1.35238,3697.2,3696.8,0.11099443]
[1717978616834,1.35238,3697.2,3696.7,35.0]
[1717978617165,1.93671843,3697.2,3696.8,0.11099443]
[1717978617337,1.35238,3697.2,3696.8,0.11099443]
[1717978617534,1.35238,3697.2,3696.7,35.0]
[1717978617878,1.35238,3697.2,3696.8,0.11099443]
[1717978618232,1.35238,3697.2,3696.7,35.0]
[1717978618444,3.04214816,3697.3,3696.8,0.11100036]
[1717978618645,2.45780239,3697.3,3696.7,35.0]
[1717978618846,0.84418956,3697.2,3696.8,0.11100036]
[1717978619057,0.84418956,3697.2,3696.7,35.0]
[1717978619377,0.84418956,3697.2,3696.8,0.11100036]
[1717978619885,0.84418956,3697.1,3696.9,0.11094098]
[1717978620380,0.84418956,3697.1,3696.7,35.0]
[1717978620579,0.84418956,3697.1,3697.0,0.11088159]
[1717978620785,0.84418956,3697.1,3696.7,35.0]
[1717978620984,0.84418956,3697.1,3697.0,0.11088159]
[1717978621288,0.84418956,3697.1,3696.7,35.0]
[1717978621475,0.84418956,3697.1,3697.0,0.11088159]
[1717978621677,0.84418956,3697.1,3696.7,35.0]
[1717978621880,0.84418956,3697.1,3696.8,0.11100036]
[1717978622182,0.84418956,3697.1,3696.7,35.0]
[1717978622381,0.84418956,3697.1,3696.9,0.11094098]
[1717978622555,0.84418956,3697.1,3696.8,0.11100036]
[1717978622890,0.84418956,3697.1,3696.9,0.11094098]
[1717978623391,0.84418956,3697.1,3696.7,35.0]
[1717978623588,0.84418956,3697.1,3697.0,0.11088159]
[1717978623800,0.84418956,3697.1,3696.7,35.0]
[1717978624008,0.84418956,3697.1,3697.0,0.11088159]
[1717978624193,0.84418956,3697.1,3696.7,35.0]
[1717978624702,0.84418956,3697.1,3696.8,0.11100036]
[1717978624994,1.70992883,3697.3,3696.8,0.11100036]
[1717978625152,1.70992883,3697.3,3696.7,35.0]
[1717978625356,1.70992883,3697.3,3696.9,0.11094098]
[1717978625575,1.70992883,3697.3,3696.8,0.11100036]
[1717978625774,1.70992883,3697.3,3697.0,0.11088159]
[1717978626014,1.70992883,3697.3,3697.1,0.11082221]
[1717978626212,1.70992883,3697.3,3696.7,35.0]
[1717978626410,1.70992883,3697.3,3696.7,36.78794538]
[1717978626611,0.58434275,3697.3,3697.2,0.661]
[1717978626815,0.58434275,3697.5,3697.2,0.661]
[1717978627015,1.12558608,3697.8,3697.4,0.661]
[1717978627225,2.20747608,3697.9,3697.4,0.661]
[1717978627404,1.08189,3697.9,3697.4,0.661]
[1717978627613,1.08189,3697.9,3697.5,35.0]
[1717978627827,1.08189,3697.9,3697.6,0.11038323]
[1717978628497,1.08189,3697.9,3697.7,35.0]
[1717978628702,4.12558608,3698.1,3697.7,35.0]
[1717978628920,1.081863,3698.0,3697.8,0.11026451]
[1717978629447,1.081863,3698.0,3697.7,35.0]
[1717978629647,1.081863,3698.0,3697.8,0.11026451]
[1717978629846,1.081863,3698.0,3697.7,35.0]
[1717978630048,4.12558608,3698.2,3697.8,0.11026451]
[1717978630350,4.081816,3698.2,3697.7,35.661]
[1717978630514,4.081816,3698.2,3697.9,0.11004826]
[1717978630866,1.081816,3698.2,3698.0,0.10998891]
[1717978631055,1.081816,3698.2,3697.7,35.661]
[1717978631211,1.081816,3698.2,3697.8,0.10994183]
[1717978631411,1.081816,3698.2,3697.7,35.661]
[1717978631643,1.081816,3698.2,3697.8,0.10994183]
[1717978631834,1.081816,3698.2,3697.7,35.661]
[1717978632251,1.081816,3698.2,3697.8,0.10994183]
[1717978632451,1.081816,3698.2,3697.7,35.0]
[1717978632639,1.081816,3698.2,3697.8,0.10994183]
[1717978632834,1.081816,3698.2,3697.7,35.0]
[1717978632835,2.26618621,3698.2,3697.7,35.0]
[1717978633035,0.661,3698.1,3697.7,35.0]
[1717978633219,0.661,3697.9,3697.8,0.10990927]
[1717978633424,2.995,3697.9,3697.8,0.10990927]
[1717978633624,2.995,3697.9,3696.9,0.661]
[1717978633863,0.60804774,3697.8,3697.0,35.11038422]
[1717978635056,0.60804774,3697.8,3697.1,0.661]
[1717978635255,4.12058608,3697.9,3697.2,0.11026546]
[1717978635730,4.12058608,3697.9,3697.3,35.0]
[1717978635932,2.995,3697.9,3697.3,35.0]
[1717978636167,4.12058608,3697.9,3697.4,0.11014672]
[1717978636343,2.995,3697.9,3697.4,0.11014672]
[1717978636545,0.74325574,3697.8,3697.4,0.11014672]
[1717978636862,2.334,3697.9,3697.5,35.0]
[1717978637042,2.334,3697.9,3697.6,0.11002799]
[1717978637445,0.84488932,3697.8,3697.6,0.11002799]
[1717978639472,2.334,3697.9,3697.6,0.11002799]
[1717978639473,3.17888932,3697.9,3697.6,0.11002799]
[1717978640473,3.17888932,3697.9,3697.7,35.0]
[1717978640680,3.17888932,3697.9,3697.8,0.10990927]
[1717978640970,3.17888932,3697.9,3697.7,35.0]
[1717978641271,3.17888932,3697.9,3697.8,0.10990927]
[1717978641442,2.334,3697.9,3697.7,35.0]
[1717978641648,3.17888932,3697.9,3697.8,0.10990927]
[1717978641969,3.17888932,3697.9,3697.7,35.0]
[1717978642173,3.17888932,3697.9,3697.8,0.10990927]
[1717978642482,2.334,3697.9,3697.7,35.0]
[1717978642687,2.334,3697.9,3697.8,0.10990927]
[1717978642894,2.334,3697.9,3697.7,35.0]
[1717978643188,2.334,3697.9,3697.8,0.10990927]
[1717978643383,0.84488932,3698.0,3697.8,0.10990927]
[1717978643540,0.84488932,3698.0,3697.7,35.0]
[1717978643877,0.84488932,3698.0,3697.8,0.10989741]
[1717978644179,0.84488932,3698.0,3697.7,35.0]
[1717978644487,0.84488932,3698.0,3697.8,0.10989741]
[1717978644694,0.84488932,3698.0,3697.7,35.0]
[1717978644898,0.84488932,3698.0,3697.8,0.10989741]
[1717978645062,0.84488932,3698.0,3697.8,0.661]
[1717978645262,0.84488932,3698.3,3697.9,0.10983805]
[1717978645668,1.92667532,3698.3,3697.9,0.10983805]
[1717978646379,1.081786,3698.3,3697.9,0.10983805]
[1717978647413,3.84488932,3698.4,3697.9,0.10983805]
[1717978647612,0.84488932,3698.4,3697.9,0.10983805]
[1717978647765,1.92664032,3698.4,3697.9,0.10983805]
[1717978648198,1.081751,3698.4,3697.8,0.661]
[1717978648496,1.081751,3698.4,3698.0,35.0]
[1717978648690,1.081751,3698.4,3698.1,0.10833705]
[1717978649697,0.84488932,3698.5,3698.1,0.10833705]
[1717978649869,1.92661432,3698.5,3698.1,0.10833705]
[1717978651080,1.081725,3698.5,3698.1,0.10833705]
[1717978652192,1.081725,3698.5,3698.2,35.0]
[1717978652509,1.081725,3698.5,3698.3,0.10819767]
[1717978652695,1.081725,3698.5,3698.2,35.0]
[1717978652898,0.84488932,3698.6,3698.3,0.10819767]
[1717978653134,0.84488932,3698.7,3698.2,37.01298]
[1717978653335,1.081631,3698.8,3698.4,0.10811764]
[1717978653611,0.84488932,3699.0,3698.3,2.58857698]
[1717978653778,3.84488932,3699.0,3698.5,0.10805831]
[1717978653984,3.0,3699.0,3698.4,0.76911764]
[1717978654195,3.0,3699.0,3698.6,0.10791622]
[1717978654392,3.0,3699.0,3698.4,0.661]
[1717978654393,4.65681354,3699.0,3698.5,0.10797555]
[1717978654708,1.081608,3698.9,3698.6,0.10791622]
[1717978654867,1.081608,3698.9,3698.6,0.661]
[1717978655069,1.081608,3698.9,3698.7,0.10785689]
[1717978655407,7.28,3699.1,3698.7,0.10785689]
[1717978656185,8.36158,3699.1,3698.7,0.10785689]
[1717978656511,1.08158,3699.1,3698.7,0.10785689]
[1717978658005,1.08158,3699.1,3698.8,35.0]
[1717978658385,1.08158,3699.1,3698.9,0.10736199]
[1717978661795,1.08158,3699.1,3699.0,35.0]
[1717978662220,1.08158,3699.1,3699.0,35.10730268]
[1717978662779,2.48521625,3699.1,3699.0,0.10730268]
[1717978663087,5.25491301,3699.1,3698.0,0.661]
[1717978663290,0.84321247,3698.8,3698.1,35.10764152]
[1717978664615,0.661,3698.7,3698.1,35.10764152]
[1717978664824,1.50421247,3698.7,3698.1,35.10764152]
[1717978665121,0.84321247,3698.7,3698.1,35.10764152]
[1717978665297,0.84321247,3698.7,3698.1,37.44140394]
[1717978665620,0.84321247,3698.8,3698.1,37.44140394]
[1717978667683,1.78658608,3698.9,3698.1,37.44140394]
[1717978667684,0.84321247,3698.7,3698.1,37.44140394]
[1717978669984,0.84321247,3698.8,3698.1,37.44140394]
[1717978670188,0.84321247,3698.7,3698.1,37.44140394]
[1717978672335,0.84321247,3698.6,3698.1,37.44140394]
[1717978675427,0.84321247,3698.7,3698.3,0.661]
[1717978675629,0.84321247,3698.8,3698.3,0.661]